fUST/lending_fUST_20250321
["ID","MTS","AMOUNT","RATE_DAILY","PERIOD"]
[356489399,1742526633415,-151.0,0.00023795,7]
[356489400,1742526633425,-151.0,0.00023795,7]
[356489401,1742526633434,-152.845451,0.00023795,7]
[356489402,1742526633444,-56015.54635132,0.000238,14]
[356489403,1742526633589,-38566.58183537,0.000238,14]
[356489414,1742526638020,-176.40567201,0.00023547,2]
[356489415,1742526638030,-214.99570821,0.00023785,2]
[356489416,1742526638040,-500.0,0.00023785,2]
[356489417,1742526638049,-2117.31737326,0.00023785,2]
[356489418,1742526638059,-2117.31737326,0.00023785,2]
[356489419,1742526638070,-490.81787479,0.00023785,2]
[356489420,1742526638079,-1504.6457371,0.00023785,2]
[356489421,1742526638113,-612.67163616,0.00023785,2]
[356489422,1742526638126,-2117.31737326,0.00023785,2]
[356489423,1742526638136,-2117.31737326,0.00023785,2]
[356489424,1742526638146,-2117.31737326,0.00023785,2]
[356489425,1742526638156,-2117.31737326,0.00023785,2]
[356489426,1742526638165,-2117.31737326,0.00023785,2]
[356489427,1742526638175,-2117.31737326,0.00023785,2]
[356489428,1742526638185,-2117.31737326,0.00023785,2]
[356489429,1742526638196,-2117.31737326,0.00023785,2]
[356489430,1742526638206,-2117.31737326,0.00023785,2]
[356489431,1742526638216,-2117.31737326,0.00023785,2]
[356489432,1742526638225,-2117.31737326,0.00023785,2]
[356489433,1742526638234,-2117.31737326,0.00023785,2]
[356489434,1742526638244,-2117.31737326,0.00023785,2]
[356489435,1742526638254,-2117.31737326,0.00023785,2]
[356489436,1742526638264,-2117.31737326,0.00023785,2]
[356489437,1742526638273,-2117.31737326,0.00023785,2]
[356489438,1742526638285,-2117.31737326,0.00023785,2]
[356489439,1742526638295,-2117.31737326,0.00023785,2]
[356489440,1742526638305,-2117.31737326,0.00023785,2]
[356489441,1742526638315,-2117.31737326,0.00023785,2]
[356489442,1742526638324,-2117.31737326,0.00023785,2]
[356489443,1742526638334,-2117.31737326,0.00023785,2]
[356489444,1742526638344,-2117.31737326,0.00023785,2]
[356489445,1742526638354,-2117.31737326,0.00023785,2]
[356489446,1742526638363,-2117.31737326,0.00023785,2]
[356489447,1742526638372,-2117.31737326,0.00023785,2]
[356489448,1742526638382,-2117.31737326,0.00023785,2]
[356489449,1742526638392,-2117.31737326,0.00023785,2]
[356489450,1742526638401,-2117.31737326,0.00023785,2]
[356489451,1742526638411,-2117.31737326,0.00023785,2]
[356489452,1742526638421,-2117.31737326,0.00023785,2]
[356489453,1742526638431,-2117.31737326,0.00023785,2]
[356489454,1742526638440,-2117.31737326,0.00023785,2]
[356489455,1742526638450,-2117.31737326,0.00023785,2]
[356489456,1742526638459,-2117.31737326,0.00023785,2]
[356489457,1742526638470,-2117.31737326,0.00023785,2]
[356489458,1742526638479,-2117.31737326,0.00023785,2]
[356489459,1742526638489,-2117.31737326,0.00023785,2]
[356489460,1742526638498,-2117.31737326,0.00023785,2]
[356489461,1742526638507,-2117.31737326,0.00023785,2]
[356489462,1742526638517,-2117.31737326,0.00023785,2]
[356489463,1742526638527,-2117.31737326,0.00023785,2]
[356489464,1742526638536,-2117.31737326,0.00023785,2]
[356489465,1742526638546,-2117.31737326,0.00023785,2]
[356489466,1742526638555,-2117.31737326,0.00023785,2]
[356489467,1742526638565,-2117.31737326,0.00023785,2]
[356489468,1742526638575,-2117.31737326,0.00023785,2]
[356489469,1742526638584,-2117.31737326,0.00023785,2]
[356489470,1742526638594,-2117.31737326,0.00023785,2]
[356489471,1742526638605,-2117.31737326,0.00023785,2]
[356489472,1742526638614,-2117.31737326,0.00023785,2]
[356489473,1742526638624,-200828.59238855,0.000238,14]
[356489474,1742526638635,-419.292325,0.000238,7]
[356489475,1742526638644,-419.292325,0.000238,7]
[356489476,1742526638654,-622.2,0.00023827,2]
[356489477,1742526638663,-645.2214,0.00023882,2]
[356489478,1742526638673,-1142.58684368,0.000239,3]
[356489479,1742526638682,-669.0945918,0.00023937,2]
[356489480,1742526638692,-880.79607379,0.00023992,2]
[356489481,1742526638702,-1142.58684364,0.00024314,3]
[356489482,1742526638711,-500.0,0.000244,2]
[356489483,1742526638721,-500.0,0.000244,2]
[356489484,1742526638731,-500.0,0.000244,2]
[356489485,1742526638740,-500.0,0.0002452,2]
[356489486,1742526638749,-500.0,0.0002452,2]
[356489487,1742526638759,-500.0,0.0002452,2]
[356489488,1742526638769,-500.0,0.0002452,2]
[356489489,1742526638778,-500.0,0.0002452,2]
[356489490,1742526638788,-500.0,0.0002452,2]
[356489491,1742526638798,-500.0,0.0002452,2]
[356489492,1742526638807,-500.0,0.0002452,2]
[356489493,1742526638817,-500.0,0.0002452,2]
[356489494,1742526638826,-500.0,0.0002452,2]
[356489495,1742526638842,-500.0,0.0002452,2]
[356489496,1742526638855,-500.0,0.0002452,2]
[356489497,1742526638866,-465.14142887,0.00024545,2]
[356489498,1742526638876,-13026.4001659,0.00024647,2]
[356489499,1742526638886,-1142.58684364,0.00024728,3]
[356489500,1742526638895,-524.5983287,0.000249,2]
[356489501,1742526638905,-1000.0,0.00024992,5]
[356489502,1742526638914,-1006.39667106,0.00024992,5]
[356489503,1742526638924,-151.0,0.00025,7]
[356489504,1742526638933,-151.0,0.00025,7]
[356489505,1742526638942,-2202.4247623,0.00025,2]
[356489506,1742526638951,-1142.58684364,0.00025141,4]
[356489507,1742526638961,-1229.04370302,0.00025259,2]
[356489508,1742526638970,-192.0,0.000253,15]
[356489509,1742526639326,-191.0,0.000253,15]
[356489510,1742526639336,-439.97553832,0.00025555,4]
[356489511,1742526639349,-702.61130532,0.00025555,4]
[356489512,1742526639359,-420.0,0.00025708,2]
[356489513,1742526639369,-1142.58684364,0.00025969,4]
[356489514,1742526639379,-1142.58684364,0.00026383,4]
[356489515,1742526639390,-1142.58684364,0.00026797,4]
[356489516,1742526639399,-1229.04370302,0.00026831,2]
[356489517,1742526639409,-1142.58684364,0.0002721,4]
[356489518,1742526639419,-419.292325,0.00027397,7]
[356489519,1742526639429,-419.292325,0.00027397,7]
[356489520,1742526639439,-500.0,0.00027397,2]
[356489521,1742526639449,-500.0,0.00027397,2]
[356489522,1742526639459,-500.0,0.00027397,2]
[356489523,1742526639469,-500.0,0.00027397,2]
[356489524,1742526639480,-500.0,0.00027397,2]
[356489525,1742526639489,-500.0,0.00027397,2]
[356489526,1742526639499,-500.0,0.00027397,2]
[356489527,1742526639508,-500.0,0.00027397,2]
[356489528,1742526639517,-500.0,0.00027397,2]
[356489529,1742526639527,-500.0,0.00027397,2]
[356489530,1742526639537,-500.0,0.00027397,2]
[356489531,1742526639546,-500.0,0.00027397,2]
[356489532,1742526639556,-500.0,0.00027397,2]
[356489533,1742526639566,-500.0,0.00027397,2]
[356489534,1742526639575,-500.0,0.00027397,2]
[356489535,1742526639585,-500.0,0.00027397,2]
[356489536,1742526639595,-500.0,0.00027397,2]
[356489537,1742526639606,-500.0,0.00027397,2]
[356489538,1742526639615,-500.0,0.00027397,2]
[356489539,1742526639625,-500.0,0.00027397,2]
[356489540,1742526639636,-500.0,0.00027397,2]
[356489541,1742526639646,-500.0,0.00027397,2]
[356489542,1742526639656,-500.0,0.00027397,2]
[356489543,1742526639667,-500.0,0.00027397,2]
[356489544,1742526639676,-500.0,0.00027397,2]
[356489545,1742526639686,-500.0,0.00027397,2]
[356489546,1742526639696,-250.0,0.00027397,2]
[356489547,1742526639705,-500.0,0.00027397,2]
[356489548,1742526639715,-212.780451,0.00027397,2]
[356489549,1742526639725,-5000.0,0.00027435,16]
[356489550,1742526639735,-5000.0,0.00027435,10]
[356489551,1742526639745,-5000.0,0.00027435,14]
[356489552,1742526639754,-1142.58684364,0.00027624,4]
[356489553,1742526639764,-587.0,0.00027888,2]
[356489554,1742526639773,-1142.58684364,0.00028038,4]
[356489555,1742526639783,-1229.04370302,0.00028404,2]
[356489556,1742526639792,-1142.58684364,0.00028452,5]
[356489557,1742526639802,-1142.58684364,0.00028866,5]
[356489558,1742526639812,-503.79382355,0.00029252,5]
[356489559,1742526639822,-1000.0,0.00029252,5]
[356489560,1742526639831,-504.10819693,0.00029252,5]
[356489561,1742526639842,-1000.0,0.00029252,5]
[356489562,1742526639852,-1000.0,0.00029252,5]
[356489563,1742526639862,-1012.40253442,0.00029252,5]
[356489564,1742526639871,-1142.58684364,0.00029279,5]
[356489565,1742526639882,-1142.58684364,0.00029693,5]
[356489566,1742526639892,-160.0,0.00029794,2]
[356489567,1742526639902,-418.02116171,0.00029794,2]
[356489568,1742526639912,-160.0,0.00029794,2]
[356489569,1742526639922,-255.75525382,0.00029878,2]
[356489570,1742526639931,-1000.0,0.00029879,5]
[356489571,1742526639940,-1000.0,0.00029879,5]
[356489572,1742526639950,-1000.0,0.00029879,5]
[356489573,1742526639960,-1229.04370302,0.00029976,2]
[356489574,1742526639971,-1000.0,0.00029999,5]
[356489575,1742526639981,-1000.0,0.00029999,5]
[356489576,1742526639990,-406.70306824,0.00029999,5]
[356489577,1742526640000,-1000.0,0.00029999,5]
[356489578,1742526640009,-1000.0,0.00029999,5]
[356489579,1742526640019,-1000.0,0.00029999,5]
[356489580,1742526640029,-1000.0,0.00029999,5]
[356489581,1742526640039,-501.981508,0.00029999,5]
[356489582,1742526640048,-1000.0,0.00029999,5]
[356489583,1742526640058,-1000.0,0.00029999,5]
[356489584,1742526640067,-1000.0,0.00029999,5]
[356489585,1742526640077,-1003.05967748,0.00029999,5]
[356489586,1742526640086,-1142.58684364,0.00030107,5]
[356489587,1742526640096,-823.0,0.00030252,2]
[356489588,1742526640106,-1142.58684364,0.00030521,5]
[356489590,1742526640120,-1142.58684364,0.00030934,5]
[356489591,1742526640130,-162.57342952,0.00031315,2]
[356489592,1742526640140,-1142.58684364,0.00031348,6]
[356489593,1742526640150,-150.0,0.00031467,14]
[356489594,1742526640160,-294.55608916,0.00031467,14]
[356489595,1742526640170,-254.722,0.00031487,2]
[356489596,1742526640179,-186.0,0.00031487,2]
[356489597,1742526640189,-281.289,0.00031487,2]
[356489598,1742526640199,-261.816,0.00031487,2]
[356489599,1742526640208,-631.016,0.00031487,2]
[356489600,1742526640217,-1917.216,0.00031487,2]
[356489601,1742526640227,-2265.0,0.00031487,2]
[356489602,1742526640236,-1229.04370302,0.00031549,2]
[356489603,1742526640245,-162.57342952,0.00031726,30]
[356489604,1742526640255,-1142.58684364,0.00031762,6]
[356489605,1742526640264,-150.0,0.00031766,14]
[356489606,1742526640274,-150.0,0.00031766,14]
[356489607,1742526640284,-419.292325,0.00031766,7]
[356489608,1742526640294,-419.292325,0.00031766,7]
[356489609,1742526640303,-999.4852841,0.00031889,4]
[356489610,1742526640313,-226.702,0.00032038,31]
[356489611,1742526640322,-1142.58684364,0.00032176,6]
[356489612,1742526640332,-700.02314842,0.000322,2]
[356489613,1742526640342,-834.1406796,0.00032544,2]
[356489614,1742526640352,-12458.93820146,0.00032544,2]
[356489615,1742526640362,-1142.58684364,0.0003259,6]
[356489616,1742526640372,-325.0,0.00032697,30]
[356489617,1742526640382,-163.84,0.000327,31]
[356489618,1742526640392,-300.0,0.000328,16]
[356489619,1742526640403,-1152.0,0.00032817,2]
[356489620,1742526640413,-762.80891696,0.0003287,30]
[356489621,1742526640425,-6894.02314231,0.0003287,30]
[356489623,1742526640974,-32085.57131493,0.0003287,30]
[356489624,1742526640984,-500.0,0.00032873,5]
[356489625,1742526640993,-500.0,0.00032873,5]
[356489626,1742526641003,-502.00293163,0.00032873,5]
[356489627,1742526641012,-500.0,0.00032873,5]
[356489628,1742526641022,-500.0,0.00032873,5]
[356489629,1742526641031,-501.11033226,0.00032873,5]
[356489630,1742526641041,-419.292325,0.00032873,7]
[356489631,1742526641050,-419.292325,0.00032873,7]
[356489632,1742526641060,-672.641,0.00032876,120]
[356489633,1742526641069,-151.0,0.00032876,7]
[356489634,1742526641079,-151.0,0.00032876,7]
[356489635,1742526641088,-151.0,0.00032876,7]
[356489636,1742526641097,-151.0,0.00032876,7]
[356489637,1742526641107,-151.0,0.00032876,7]
[356489638,1742526641122,-151.0,0.00032876,7]
[356489639,1742526641132,-151.0,0.00032876,7]
[356489640,1742526641141,-151.0,0.00032876,7]
[356489641,1742526641151,-200.127027,0.00032876,7]
[356489642,1742526641160,-500.0,0.00032876,21]
[356489643,1742526641170,-161.958694,0.00032876,7]
[356489644,1742526641179,-1087.28,0.00032876,21]
[356489645,1742526641190,-151.0,0.00032876,7]
[356489646,1742526641199,-151.0,0.00032876,7]
[356489647,1742526641209,-551.5,0.00032876,21]
[356489648,1742526641219,-500.0,0.00032876,21]
[356489649,1742526641228,-500.0,0.00032876,21]
[356489650,1742526641238,-555.27,0.00032876,21]
[356489651,1742526641248,-1756.26,0.00032876,21]
[356489652,1742526641257,-500.0,0.00032876,21]
[356489653,1742526641267,-500.0,0.00032876,21]
[356489654,1742526641277,-588.45,0.00032876,21]
[356489655,1742526641287,-500.0,0.00032876,21]
[356489656,1742526641297,-500.0,0.00032876,21]
[356489657,1742526641306,-666.39,0.00032876,21]
[356489658,1742526641316,-500.0,0.00032876,21]
[356489659,1742526641325,-626.11,0.00032876,21]
[356489660,1742526641335,-500.0,0.00032876,21]
[356489661,1742526641344,-500.0,0.00032876,21]
[356489662,1742526641353,-500.0,0.00032876,21]
[356489663,1742526641363,-1570.29,0.00032876,21]
[356489664,1742526641372,-698.99,0.00032876,120]
[356489665,1742526641382,-500.0,0.00032876,21]
[356489666,1742526641392,-162.46229461,0.00032876,21]
[356489667,1742526641403,-192.8516686,0.00032876,21]
[356489668,1742526641413,-658.39,0.00032876,2]
[356489669,1742526641422,-500.0,0.00032876,21]
[356489670,1742526641431,-160.0,0.00032876,7]
[356489671,1742526641442,-1338.24,0.00032876,21]
[356489672,1742526641451,-418.02116171,0.00032876,7]
[356489673,1742526641460,-500.0,0.00032876,21]
[356489674,1742526641470,-1257.73,0.00032876,21]
[356489675,1742526641480,-724.71,0.00032876,21]
[356489676,1742526641489,-500.0,0.00032876,21]
[356489677,1742526641499,-493.42542392,0.00032876,21]
[356489678,1742526641508,-498.5765024,0.00032876,21]
[356489679,1742526641517,-500.0,0.00032876,21]
[356489680,1742526641526,-500.0,0.00032876,21]
[356489681,1742526641535,-1007.32,0.00032876,21]
[356489682,1742526641545,-500.0,0.00032876,21]
[356489683,1742526641554,-192.23855185,0.00032876,21]
[356489684,1742526641564,-628.86,0.00032876,21]
[356489685,1742526641573,-1014.96,0.00032876,21]
[356489686,1742526641583,-500.0,0.00032876,21]
[356489687,1742526641592,-500.0,0.00032876,21]
[356489688,1742526641601,-500.0,0.00032876,21]
[356489689,1742526641610,-500.0,0.00032876,21]
[356489690,1742526641620,-500.0,0.00032876,21]
[356489691,1742526641629,-500.0,0.00032876,21]
[356489693,1742526641640,-500.0,0.00032876,21]
[356489694,1742526641649,-660.36,0.00032876,21]
[356489695,1742526641659,-1099.63,0.00032876,21]
[356489696,1742526641729,-991.95,0.00032876,21]
[356489697,1742526641740,-645.85,0.00032876,21]
[356489698,1742526641750,-500.0,0.00032876,21]
[356489699,1742526641760,-500.0,0.00032876,21]
[356489700,1742526641769,-525.37,0.00032876,21]
[356489701,1742526641778,-500.0,0.00032876,21]
[356489702,1742526641788,-500.0,0.00032876,21]
[356489703,1742526641797,-1454.7,0.00032876,21]
[356489704,1742526641807,-500.0,0.00032876,21]
[356489705,1742526641816,-500.0,0.00032876,21]
[356489706,1742526641825,-500.0,0.00032876,21]
[356489707,1742526641835,-776.47,0.00032876,21]
[356489708,1742526641846,-559.2,0.00032876,21]
[356489709,1742526641855,-795.11,0.00032876,21]
[356489710,1742526641864,-500.0,0.00032876,21]
[356489711,1742526641873,-500.0,0.00032876,21]
[356489712,1742526641884,-500.0,0.00032876,21]
[356489713,1742526641895,-500.0,0.00032876,21]
[356489714,1742526641904,-500.0,0.00032876,21]
[356489715,1742526641914,-500.0,0.00032876,21]
[356489716,1742526641923,-500.0,0.00032876,2]
[356489717,1742526641932,-316.0,0.00032876,7]
[356489718,1742526641941,-500.0,0.00032876,21]
[356489719,1742526641950,-723.79,0.00032876,21]
[356489720,1742526641960,-500.0,0.00032876,21]
[356489721,1742526641969,-500.0,0.00032876,21]
[356489722,1742526641978,-500.0,0.00032876,21]
[356489723,1742526641988,-500.0,0.00032876,21]
[356489724,1742526641997,-1116.54,0.00032876,21]
[356489725,1742526642006,-500.0,0.00032876,21]
[356489726,1742526642015,-1258.77,0.00032876,21]
[356489727,1742526642025,-500.0,0.00032876,21]
[356489728,1742526642034,-1292.81,0.00032876,21]
[356489729,1742526642043,-1032.59,0.00032876,21]
[356489730,1742526642052,-500.0,0.00032876,21]
[356489731,1742526642061,-590.01,0.00032876,21]
[356489732,1742526642070,-500.0,0.00032876,21]
[356489733,1742526642079,-500.0,0.00032876,21]
[356489734,1742526642089,-500.0,0.00032876,21]
[356489735,1742526642098,-674.35,0.00032876,21]
[356489736,1742526642107,-1202.24,0.00032876,21]
[356489737,1742526642119,-500.0,0.00032876,21]
[356489738,1742526642129,-531.31,0.00032876,21]
[356489739,1742526642141,-1000.0,0.00032876,21]
[356489740,1742526642151,-500.0,0.00032876,21]
[356489741,1742526642161,-813.18,0.00032876,21]
[356489742,1742526642171,-631.46,0.00032876,21]
[356489743,1742526642180,-500.0,0.00032876,21]
[356489744,1742526642190,-500.0,0.00032876,21]
[356489745,1742526642200,-500.0,0.00032876,21]
[356489746,1742526642210,-500.0,0.00032876,21]
[356489747,1742526642219,-1081.99,0.00032876,21]
[356489748,1742526642229,-500.0,0.00032876,21]
[356489749,1742526642238,-500.0,0.00032876,21]
[356489750,1742526642247,-500.0,0.00032876,21]
[356489751,1742526642256,-939.4,0.00032876,21]
[356489752,1742526642265,-500.0,0.00032876,21]
[356489753,1742526642274,-851.15,0.00032876,21]
[356489754,1742526642283,-604.25,0.00032876,21]
[356489755,1742526642292,-500.0,0.00032876,21]
[356489756,1742526642302,-1645.9,0.00032876,21]
[356489757,1742526642311,-939.68,0.00032876,21]
[356489758,1742526642321,-637.18,0.00032876,21]
[356489759,1742526642330,-500.0,0.00032876,21]
[356489760,1742526642339,-500.0,0.00032876,21]
[356489761,1742526642349,-805.69,0.00032876,21]
[356489762,1742526642358,-1648.81,0.00032876,21]
[356489763,1742526642368,-500.0,0.00032876,7]
[356489764,1742526642378,-500.0,0.00032876,21]
[356489765,1742526642388,-1007.7,0.00032876,21]
[356489766,1742526642398,-500.0,0.00032876,21]
[356489767,1742526642407,-500.0,0.00032876,21]
[356489768,1742526642416,-174.03280011,0.00032876,21]
[356489769,1742526642426,-500.0,0.00032876,21]
[356489770,1742526642436,-578.25,0.00032876,21]
[356489771,1742526642445,-500.0,0.00032876,21]
[356489772,1742526642455,-500.0,0.00032876,21]
[356489773,1742526642464,-754.3,0.00032876,21]
[356489774,1742526642474,-500.0,0.00032876,21]
[356489775,1742526642483,-736.71,0.00032876,21]
[356489776,1742526642492,-500.0,0.00032876,21]
[356489777,1742526642502,-500.0,0.00032876,21]
[356489778,1742526642512,-500.0,0.00032876,21]
[356489779,1742526642521,-523.95,0.00032876,21]
[356489780,1742526642530,-500.0,0.00032876,21]
[356489781,1742526642539,-500.0,0.00032876,21]
[356489782,1742526642548,-200.0,0.00032876,7]
[356489783,1742526642558,-500.0,0.00032876,21]
[356489784,1742526642567,-500.0,0.00032876,21]
[356489786,1742526642576,-1088.87,0.00032876,21]
[356489787,1742526642585,-586.81,0.00032876,21]
[356489788,1742526642594,-745.37,0.00032876,21]
[356489789,1742526642604,-500.0,0.00032876,21]
[356489790,1742526642614,-500.0,0.00032876,21]
[356489791,1742526642623,-500.0,0.00032876,21]
[356489792,1742526642632,-1238.69,0.00032876,21]
[356489793,1742526642642,-500.0,0.00032876,21]
[356489794,1742526642651,-575.58,0.00032876,21]
[356489795,1742526642661,-500.0,0.00032876,21]
[356489796,1742526642670,-1407.84,0.00032876,21]
[356489797,1742526642679,-552.16,0.00032876,21]
[356489798,1742526642688,-500.0,0.00032876,21]
[356489799,1742526642698,-500.0,0.00032876,21]
[356489800,1742526642707,-500.0,0.00032876,21]
[356489801,1742526642716,-500.0,0.00032876,21]
[356489802,1742526642726,-653.29,0.00032876,21]
[356489803,1742526642735,-500.0,0.00032876,21]
[356489804,1742526642744,-500.0,0.00032876,21]
[356489805,1742526642753,-500.0,0.00032876,21]
[356489806,1742526642762,-500.0,0.00032876,21]
[356489807,1742526642772,-498.55470394,0.00032876,21]
[356489808,1742526642781,-693.02,0.00032876,21]
[356489810,1742526642790,-1557.18,0.00032876,21]
[356489812,1742526642800,-500.0,0.00032876,21]
[356489813,1742526642809,-583.11,0.00032876,21]
[356489814,1742526642818,-823.3,0.00032876,21]
[356489815,1742526642827,-950.8,0.00032876,21]
[356489816,1742526642837,-500.0,0.00032876,21]
[356489817,1742526642846,-1289.07,0.00032876,21]
[356489818,1742526642855,-500.0,0.00032876,21]
[356489819,1742526642864,-500.0,0.00032876,21]
[356489820,1742526642873,-500.0,0.00032876,21]
[356489821,1742526642883,-500.0,0.00032876,21]
[356489822,1742526642893,-500.0,0.00032876,21]
[356489823,1742526642902,-500.0,0.00032876,21]
[356489824,1742526642912,-502.29,0.00032876,21]
[356489825,1742526642921,-1201.03,0.00032876,21]
[356489826,1742526642931,-1295.03,0.00032876,21]
[356489828,1742526642941,-701.08,0.00032876,21]
[356489829,1742526642951,-505.6648794,0.00032876,21]
[356489830,1742526642960,-500.0,0.00032876,21]
[356489831,1742526642970,-1008.43,0.00032876,21]
[356489832,1742526642979,-500.0,0.00032876,21]
[356489833,1742526642988,-1581.88,0.00032876,21]
[356489834,1742526642998,-601.47,0.00032876,21]
[356489835,1742526643008,-500.0,0.00032876,21]
[356489837,1742526643018,-1062.47,0.00032876,21]
[356489839,1742526643027,-500.86152713,0.00032876,21]
[356489841,1742526643038,-500.91872408,0.00032876,21]
[356489843,1742526643048,-1766.49,0.00032876,21]
[356489845,1742526643058,-500.0,0.00032876,21]
[356489846,1742526643068,-724.21,0.00032876,21]
[356489848,1742526643078,-780.44,0.00032876,21]
[356489850,1742526643087,-209.77070483,0.00032876,21]
[356489851,1742526643098,-500.0,0.00032876,21]
[356489852,1742526643107,-644.51,0.00032876,21]
[356489853,1742526643121,-1090.47,0.00032876,21]
[356489854,1742526643131,-1239.27,0.00032876,21]
[356489855,1742526643140,-500.0,0.00032876,21]
[356489856,1742526643151,-500.0,0.00032876,21]
[356489857,1742526643161,-500.0,0.00032876,21]
[356489858,1742526643171,-500.0,0.00032876,21]
[356489859,1742526643180,-920.22,0.00032876,21]
[356489860,1742526643190,-500.0,0.00032876,2]
[356489861,1742526643200,-1.61146801,0.00032876,2]
[356489863,1742526644496,-0.00747397,0.00032876,2]
[356489864,1742526645155,-498.38105802,0.00032876,2]
[356489865,1742526645164,-500.0,0.00032876,2]
[356489866,1742526645174,-500.0,0.00032876,2]
[356489867,1742526645183,-500.0,0.00032876,2]
[356489868,1742526645195,-500.0,0.00032876,2]
[356489869,1742526645205,-500.0,0.00032876,2]
[356489870,1742526645214,-500.0,0.00032876,2]
[356489871,1742526645223,-664.68,0.00032876,21]
[356489872,1742526645233,-500.0,0.00032876,2]
[356489873,1742526645242,-500.0,0.00032876,2]
[356489874,1742526645252,-500.0,0.00032876,2]
[356489875,1742526645261,-500.0,0.00032876,2]
[356489876,1742526645270,-500.0,0.00032876,2]
[356489877,1742526645280,-500.0,0.00032876,2]
[356489878,1742526645289,-500.0,0.00032876,2]
[356489879,1742526645299,-500.0,0.00032876,2]
[356489880,1742526645308,-500.0,0.00032876,2]
[356489881,1742526645317,-504.59574956,0.00032876,21]
[356489882,1742526645326,-135.3539008,0.00032876,2]
[356489883,1742526645341,-364.6460992,0.00032876,2]
[356489884,1742526645351,-500.0,0.00032876,2]
[356489885,1742526645361,-500.0,0.00032876,2]
[356489886,1742526645371,-500.0,0.00032876,2]
[356489887,1742526645381,-500.0,0.00032876,2]
[356489888,1742526645391,-500.0,0.00032876,2]
[356489889,1742526645400,-450.97602358,0.00032876,2]
[356489890,1742526645409,-504.73723044,0.00032876,21]
[356489891,1742526645419,-500.0,0.00032876,21]
[356489892,1742526645428,-621.29,0.00032876,21]
[356489893,1742526645437,-516.16209997,0.00032876,21]
[356489894,1742526645447,-1156.94,0.00032876,21]
[356489895,1742526645456,-688.21,0.00032876,21]
[356489896,1742526645466,-762.79,0.00032876,21]
[356489897,1742526645475,-500.0,0.00032876,21]
[356489898,1742526645485,-500.0,0.00032876,21]
[356489899,1742526645495,-1626.82,0.00032876,21]
[356489900,1742526645505,-521.28426164,0.00032876,21]
[356489901,1742526645514,-500.0,0.00032876,21]
[356489902,1742526645524,-500.0,0.00032876,7]
[356489903,1742526645534,-500.0,0.00032876,21]
[356489904,1742526645543,-500.0,0.00032876,21]
[356489905,1742526645553,-500.0,0.00032876,21]
[356489907,1742526645562,-575.70084693,0.00032876,21]
[356489909,1742526645572,-1398.45694867,0.00032876,21]
[356489910,1742526645628,-15.15305133,0.00032876,21]
[356489911,1742526645638,-503.2605326,0.00032876,21]
[356489912,1742526645647,-1688.2,0.00032876,21]
[356489913,1742526645657,-500.0,0.00032876,21]
[356489914,1742526645666,-987.62,0.00032876,21]
[356489916,1742526645677,-500.0,0.00032876,7]
[356489918,1742526645687,-500.0,0.00032876,21]
[356489919,1742526645696,-576.15,0.00032876,21]
[356489920,1742526645706,-500.0,0.00032876,21]
[356489921,1742526645716,-500.0,0.00032876,21]
[356489922,1742526645726,-32.24717189,0.00032876,21]
[356489951,1742527469862,-155.4504,0.00023475,2]
[356489959,1742527690066,408.04017333,0.0001399,2]
[356489961,1742527712311,156.68579223,0.0002,7]
[356489962,1742527714676,570.72135884,0.000149,2]
[356489964,1742527718469,16000.0,0.00015,2]